Department family,Entity,Date,Expense Type,Expense area,Supplier,Transaction number,AP Amount (�)
Department of Health,NHS Barnsley CCG,31/08/2019,Clinical&Medical-Commercial Sector,LEARNING DIFFICULTIES,ASC HEALTHCARE LTD,28405627,"45,942.86"
Department of Health,NHS Barnsley CCG,31/08/2019,Clinical&Medical-Commercial Sector,LEARNING DIFFICULTIES,ASC HEALTHCARE LTD,28567156,"38,285.71"
Department of Health,NHS Barnsley CCG,31/08/2019,C&M-APMS Contract Value,PRC DELEGATED CO-COMMISSIONING,BARNSLEY HEALTHCARE FEDERATION,28451064,"28,655.26"
Department of Health,NHS Barnsley CCG,31/08/2019,C&M-APMS OOH Opt Outs,PRC DELEGATED CO-COMMISSIONING,BARNSLEY HEALTHCARE FEDERATION,28451064,9.61
Department of Health,NHS Barnsley CCG,31/08/2019,C&M-APMS PCN DES Participation,PRC DELEGATED CO-COMMISSIONING,BARNSLEY HEALTHCARE FEDERATION,28451064,525.63
Department of Health,NHS Barnsley CCG,31/08/2019,C&M-APMS Prem Actual Rent,PRC DELEGATED CO-COMMISSIONING,BARNSLEY HEALTHCARE FEDERATION,28451064,"1,310.42"
Department of Health,NHS Barnsley CCG,31/08/2019,C&M-APMS Prem Rates,PRC DELEGATED CO-COMMISSIONING,BARNSLEY HEALTHCARE FEDERATION,28451064,500.00
Department of Health,NHS Barnsley CCG,31/08/2019,C&M-APMS QOF Aspiration,PRC DELEGATED CO-COMMISSIONING,BARNSLEY HEALTHCARE FEDERATION,28451064,"2,347.18"
Department of Health,NHS Barnsley CCG,31/08/2019,C&M-APMS Contract Value,PRC DELEGATED CO-COMMISSIONING,BARNSLEY HEALTHCARE FEDERATION,28451066,"31,719.61"
Department of Health,NHS Barnsley CCG,31/08/2019,C&M-APMS OOH Opt Outs,PRC DELEGATED CO-COMMISSIONING,BARNSLEY HEALTHCARE FEDERATION,28451066,23.86
Department of Health,NHS Barnsley CCG,31/08/2019,C&M-APMS PCN DES Participation,PRC DELEGATED CO-COMMISSIONING,BARNSLEY HEALTHCARE FEDERATION,28451066,615.93
Department of Health,NHS Barnsley CCG,31/08/2019,C&M-APMS Prem Actual Rent,PRC DELEGATED CO-COMMISSIONING,BARNSLEY HEALTHCARE FEDERATION,28451066,"2,150.00"
Department of Health,NHS Barnsley CCG,31/08/2019,C&M-APMS Prem Healthcentre Rent,PRC DELEGATED CO-COMMISSIONING,BARNSLEY HEALTHCARE FEDERATION,28451066,"7,567.71"
Department of Health,NHS Barnsley CCG,31/08/2019,C&M-APMS Prem Rates,PRC DELEGATED CO-COMMISSIONING,BARNSLEY HEALTHCARE FEDERATION,28451066,503.00
Department of Health,NHS Barnsley CCG,31/08/2019,C&M-PMS QOF Aspiration,PRC DELEGATED CO-COMMISSIONING,BARNSLEY HEALTHCARE FEDERATION,28451066,"2,244.77"
Department of Health,NHS Barnsley CCG,31/08/2019,C&M-APMS Contract Value,PRC DELEGATED CO-COMMISSIONING,BARNSLEY HEALTHCARE FEDERATION,28451068,"28,695.28"
Department of Health,NHS Barnsley CCG,31/08/2019,C&M-APMS PCN DES Participation,PRC DELEGATED CO-COMMISSIONING,BARNSLEY HEALTHCARE FEDERATION,28451068,542.52
Department of Health,NHS Barnsley CCG,31/08/2019,C&M-APMS Prem Actual Rent,PRC DELEGATED CO-COMMISSIONING,BARNSLEY HEALTHCARE FEDERATION,28451068,"6,200.00"
Department of Health,NHS Barnsley CCG,31/08/2019,C&M-APMS Prem Rates,PRC DELEGATED CO-COMMISSIONING,BARNSLEY HEALTHCARE FEDERATION,28451068,"1,235.00"
Department of Health,NHS Barnsley CCG,31/08/2019,C&M-PMS QOF Aspiration,PRC DELEGATED CO-COMMISSIONING,BARNSLEY HEALTHCARE FEDERATION,28451068,"2,495.50"
Department of Health,NHS Barnsley CCG,31/08/2019,C&M-GP PRACTICE REVENUE - PCTF,GP FORWARD VIEW,BARNSLEY HEALTHCARE FEDERATION,28663271,"140,527.50"
Department of Health,NHS Barnsley CCG,31/08/2019,Clinical&Medical-Commercial Sector,OUT OF HOURS,BARNSLEY HEALTHCARE FEDERATION,28663277,"120,520.57"
Department of Health,NHS Barnsley CCG,31/08/2019,C&M-PMS Practice Transformational Support,COMMISSIONING SCHEMES,BARNSLEY HEALTHCARE FEDERATION,28700622,"54,166.67"
Department of Health,NHS Barnsley CCG,31/08/2019,C&M-PMS Contract Value,PRC DELEGATED CO-COMMISSIONING,BARNSLEY HEALTHCARE FEDERATION CIC (GOLDTHORPE),28459075,"41,822.39"
Department of Health,NHS Barnsley CCG,31/08/2019,C&M-PMS DES Minor Surgery,PRC DELEGATED CO-COMMISSIONING,BARNSLEY HEALTHCARE FEDERATION CIC (GOLDTHORPE),28459075,639.30
Department of Health,NHS Barnsley CCG,31/08/2019,C&M-PMS Out of Hours Opt Outs,PRC DELEGATED CO-COMMISSIONING,BARNSLEY HEALTHCARE FEDERATION CIC (GOLDTHORPE),28459075,26.00
Department of Health,NHS Barnsley CCG,31/08/2019,C&M-PMS PCN DES Participation,PRC DELEGATED CO-COMMISSIONING,BARNSLEY HEALTHCARE FEDERATION CIC (GOLDTHORPE),28459075,804.38
Department of Health,NHS Barnsley CCG,31/08/2019,C&M-PMS PCO Other,PRC DELEGATED CO-COMMISSIONING,BARNSLEY HEALTHCARE FEDERATION CIC (GOLDTHORPE),28459075,"2,998.00"
Department of Health,NHS Barnsley CCG,31/08/2019,C&M-PMS Prem Healthcentre Rent,PRC DELEGATED CO-COMMISSIONING,BARNSLEY HEALTHCARE FEDERATION CIC (GOLDTHORPE),28459075,"12,099.61"
Department of Health,NHS Barnsley CCG,31/08/2019,C&M-PMS QOF Aspiration,PRC DELEGATED CO-COMMISSIONING,BARNSLEY HEALTHCARE FEDERATION CIC (GOLDTHORPE),28459075,"3,008.69"
Department of Health,NHS Barnsley CCG,31/08/2019,Hcare Srv Rec Fdtn Trust-CQUIN,ACUTE COMMISSIONING,BARNSLEY HOSPITAL NHS FOUNDATION TRUST,28434096,"-109,238.00"
Department of Health,NHS Barnsley CCG,31/08/2019,Hcare Srv Rec Fdtn Trust-Contract Baseline,ACUTE COMMISSIONING,BARNSLEY HOSPITAL NHS FOUNDATION TRUST,28434096,"-414,750.00"
Department of Health,NHS Barnsley CCG,31/08/2019,Hcare Srv Rec Fdtn Trust-Contract Baseline,ACUTE COMMISSIONING,BARNSLEY HOSPITAL NHS FOUNDATION TRUST,28434097,"286,663.00"
Department of Health,NHS Barnsley CCG,31/08/2019,Hcare Srv Rec Fdtn Trust-Contract Baseline,ACUTE COMMISSIONING,BARNSLEY HOSPITAL NHS FOUNDATION TRUST,28434098,"1,527,625.00"
Department of Health,NHS Barnsley CCG,31/07/2019,Hcare Srv Rec Fdtn Trust-Contract Baseline,INTERMEDIATE CARE,BARNSLEY HOSPITAL NHS FOUNDATION TRUST,28240096,"386,384.00"
Department of Health,NHS Barnsley CCG,31/07/2019,Hcare Srv Rec Fdtn Trust-Contract Baseline,ACUTE COMMISSIONING,BARNSLEY HOSPITAL NHS FOUNDATION TRUST,28240093,"13,171,486.00"
Department of Health,NHS Barnsley CCG,31/07/2019,Hcare Srv Rec Fdtn Trust-Contract Baseline,ACUTE COMMISSIONING,BARNSLEY HOSPITAL NHS FOUNDATION TRUST,28240088,"595,384.00"
Department of Health,NHS Barnsley CCG,31/07/2019,Telecoms-Data lines,PRIMARY CARE IT,BARNSLEY HOSPITAL NHS FOUNDATION TRUST,28185315,"30,442.87"
Department of Health,NHS Barnsley CCG,31/08/2019,Clinical&Medical-Othe Public Sector,CHILD AND ADOLESCENT MENTAL HEALTH,BARNSLEY METROPOLITAN BOROUGH COUNCIL,28750323,"36,831.00"
Department of Health,NHS Barnsley CCG,31/08/2019,Clinical&Medical-Othe Public Sector,COMMISSIONING - NON ACUTE,BARNSLEY METROPOLITAN BOROUGH COUNCIL,28750323,"193,835.00"
Department of Health,NHS Barnsley CCG,31/08/2019,Clinical&Medical-Othe Public Sector,COMMUNITY SERVICES,BARNSLEY METROPOLITAN BOROUGH COUNCIL,28750323,"32,984.00"
Department of Health,NHS Barnsley CCG,31/08/2019,Clinical&Medical-Voluntary Sector,COMMUNITY SERVICES,BARNSLEY METROPOLITAN BOROUGH COUNCIL,28750323,"-48,964.00"
Department of Health,NHS Barnsley CCG,31/08/2019,Local AuthorityRevenue-Non-Contract,COMMUNITY SERVICES,BARNSLEY METROPOLITAN BOROUGH COUNCIL,28750323,"-4,875.00"
Department of Health,NHS Barnsley CCG,31/08/2019,Soc Care-Other Soc Care,COMMUNITY SERVICES,BARNSLEY METROPOLITAN BOROUGH COUNCIL,28750323,"137,586.00"
Department of Health,NHS Barnsley CCG,31/08/2019,Soc Care-Re-ablement services,COMMUNITY SERVICES,BARNSLEY METROPOLITAN BOROUGH COUNCIL,28750323,"195,691.00"
Department of Health,NHS Barnsley CCG,31/08/2019,Social Care-Res Long Stay Exp,LONG TERM CONDITIONS,BARNSLEY METROPOLITAN BOROUGH COUNCIL,28750323,"433,880.00"
Department of Health,NHS Barnsley CCG,31/08/2019,Social Care-Res Short Stay Exp,COMMUNITY SERVICES,BARNSLEY METROPOLITAN BOROUGH COUNCIL,28750323,"68,708.00"
Department of Health,NHS Barnsley CCG,31/08/2019,C&M-PMS DES Extended Hours Access,PRC DELEGATED CO-COMMISSIONING,BHF - PCN,28700529,"31,961.73"
Department of Health,NHS Barnsley CCG,31/08/2019,C&M-PMS PCN DES Clinical Director,PRC DELEGATED CO-COMMISSIONING,BHF - PCN,28700529,"14,948.43"
Department of Health,NHS Barnsley CCG,31/08/2019,Clinical&Medical-Commercial Sector,ACUTE COMMISSIONING,BMI HEALTHCARE LTD,28405704,"29,370.48"
Department of Health,NHS Barnsley CCG,31/08/2019,C&M-GMS Global Sum,PRC DELEGATED CO-COMMISSIONING,NHS BARNSLEY CCG GP PRACTICE,28690087,"95,212.63"
Department of Health,NHS Barnsley CCG,31/08/2019,C&M-GMS PCN DES Participation,PRC DELEGATED CO-COMMISSIONING,NHS BARNSLEY CCG GP PRACTICE,28690087,"1,946.09"
Department of Health,NHS Barnsley CCG,31/08/2019,C&M-GMS Prem Actual Rent,PRC DELEGATED CO-COMMISSIONING,NHS BARNSLEY CCG GP PRACTICE,28690087,"12,500.00"
Department of Health,NHS Barnsley CCG,31/08/2019,C&M-GMS Prem Healthcentre Rent,PRC DELEGATED CO-COMMISSIONING,NHS BARNSLEY CCG GP PRACTICE,28690087,"3,276.92"
Department of Health,NHS Barnsley CCG,31/08/2019,C&M-GMS Prem Rates,PRC DELEGATED CO-COMMISSIONING,NHS BARNSLEY CCG GP PRACTICE,28690087,"17,322.41"
Department of Health,NHS Barnsley CCG,31/08/2019,C&M-GMS QOF Aspiration,PRC DELEGATED CO-COMMISSIONING,NHS BARNSLEY CCG GP PRACTICE,28690087,"9,600.36"
Department of Health,NHS Barnsley CCG,31/08/2019,ME-GMS GP Pension EEs Adjustments,PRC DELEGATED CO-COMMISSIONING,NHS BARNSLEY CCG GP PRACTICE,28690087,72.48
Department of Health,NHS Barnsley CCG,31/08/2019,ME-GMS GP Pension ERs Adjustments,PRC DELEGATED CO-COMMISSIONING,NHS BARNSLEY CCG GP PRACTICE,28690087,71.88
Department of Health,NHS Barnsley CCG,31/08/2019,Clinical&Medical-Voluntary Sector,CHILD AND ADOLESCENT MENTAL HEALTH,CHILDREN & YOUNG PEOPLES EMPOWERMENT PROJECT LTD,28543736,"180,362.00"
Department of Health,NHS Barnsley CCG,31/08/2019,Clinical&Medical-Commercial Sector,ACUTE COMMISSIONING,CLAREMONT HOSPITAL,28565923,"33,040.00"
Department of Health,NHS Barnsley CCG,31/08/2019,Clinical&Medical-Commercial Sector,ACUTE COMMISSIONING,CLAREMONT HOSPITAL,28567231,"42,208.00"
Department of Health,NHS Barnsley CCG,31/08/2019,Voids and Subsidies,RECHARGES NHS PROPERTY SERVICES LTD,COMMUNITY HEALTH PARTNERSHIPS LTD,28389188,"53,033.71"
Department of Health,NHS Barnsley CCG,31/08/2019,Cont Care- Prior Year Payments,CHC ADULT FULLY FUNDED,CROWN CARE (IV) LTD,28422239,"29,122.48"
Department of Health,NHS Barnsley CCG,31/08/2019,Clinical&Medical-Commercial Sector,LEARNING DIFFICULTIES,CYGNET (DH) LTD,28567069,"26,784.00"
Department of Health,NHS Barnsley CCG,31/08/2019,C&M-GMS Global Sum,PRC DELEGATED CO-COMMISSIONING,NHS BARNSLEY CCG GP PRACTICE,28684989,"86,023.52"
Department of Health,NHS Barnsley CCG,31/08/2019,C&M-GMS PCN DES Participation,PRC DELEGATED CO-COMMISSIONING,NHS BARNSLEY CCG GP PRACTICE,28684989,"1,756.95"
Department of Health,NHS Barnsley CCG,31/08/2019,C&M-GMS Prem Healthcentre Rent,PRC DELEGATED CO-COMMISSIONING,NHS BARNSLEY CCG GP PRACTICE,28684989,"27,043.66"
Department of Health,NHS Barnsley CCG,31/08/2019,C&M-GMS QOF Aspiration,PRC DELEGATED CO-COMMISSIONING,NHS BARNSLEY CCG GP PRACTICE,28684989,"8,149.07"
Department of Health,NHS Barnsley CCG,31/08/2019,ME - GMS GP Prior Year ERs,PRC DELEGATED CO-COMMISSIONING,NHS BARNSLEY CCG GP PRACTICE,28684989,"2,863.94"
Department of Health,NHS Barnsley CCG,31/08/2019,ME-GMS GP Prior Year EEs,PRC DELEGATED CO-COMMISSIONING,NHS BARNSLEY CCG GP PRACTICE,28684989,"2,489.52"
Department of Health,NHS Barnsley CCG,31/07/2019,Hcare Srv Rec Fdtn Trust-CQUIN,ACUTE COMMISSIONING,DONCASTER AND BASSETLAW HOSPITALS NHS FOUNDATION TRUST,28240083,"2,483.00"
Department of Health,NHS Barnsley CCG,31/07/2019,Hcare Srv Rec Fdtn Trust-Contract Baseline,ACUTE COMMISSIONING,DONCASTER AND BASSETLAW HOSPITALS NHS FOUNDATION TRUST,28240083,"432,508.00"
Department of Health,NHS Barnsley CCG,31/08/2019,Cont Care- Prior Year Payments,CHC ADULT FULLY FUNDED,DONCASTER METROPOLITAN BOROUGH COUNCIL,28565789,"47,925.01"
Department of Health,NHS Barnsley CCG,31/08/2019,Cont Care- Prior Year Payments,CHC ADULT FULLY FUNDED,DONCASTER METROPOLITAN BOROUGH COUNCIL,28567195,"-47,925.01"
Department of Health,NHS Barnsley CCG,31/08/2019,C&M-PMS Contract Value,PRC DELEGATED CO-COMMISSIONING,NHS BARNSLEY CCG GP PRACTICE,28451041,"92,434.22"
Department of Health,NHS Barnsley CCG,31/08/2019,C&M-PMS DES Minor Surgery,PRC DELEGATED CO-COMMISSIONING,NHS BARNSLEY CCG GP PRACTICE,28451041,"2,216.24"
Department of Health,NHS Barnsley CCG,31/08/2019,C&M-PMS Out of Hours Opt Outs,PRC DELEGATED CO-COMMISSIONING,NHS BARNSLEY CCG GP PRACTICE,28451041,47.53
Department of Health,NHS Barnsley CCG,31/08/2019,C&M-PMS PCN DES Participation,PRC DELEGATED CO-COMMISSIONING,NHS BARNSLEY CCG GP PRACTICE,28451041,"1,811.14"
Department of Health,NHS Barnsley CCG,31/08/2019,C&M-PMS PCO Other,PRC DELEGATED CO-COMMISSIONING,NHS BARNSLEY CCG GP PRACTICE,28451041,646.50
Department of Health,NHS Barnsley CCG,31/08/2019,C&M-PMS Prem Healthcentre Rent,PRC DELEGATED CO-COMMISSIONING,NHS BARNSLEY CCG GP PRACTICE,28451041,"18,178.19"
Department of Health,NHS Barnsley CCG,31/08/2019,C&M-PMS Prem Notional Rent,PRC DELEGATED CO-COMMISSIONING,NHS BARNSLEY CCG GP PRACTICE,28451041,"1,987.50"
Department of Health,NHS Barnsley CCG,31/08/2019,C&M-PMS Prem Rates,PRC DELEGATED CO-COMMISSIONING,NHS BARNSLEY CCG GP PRACTICE,28451041,360.61
Department of Health,NHS Barnsley CCG,31/08/2019,C&M-PMS QOF Aspiration,PRC DELEGATED CO-COMMISSIONING,NHS BARNSLEY CCG GP PRACTICE,28451041,"10,450.25"
Department of Health,NHS Barnsley CCG,31/08/2019,C&M-PMS Contract Value,PRC DELEGATED CO-COMMISSIONING,NHS BARNSLEY CCG GP PRACTICE,28451044,"57,614.22"
Department of Health,NHS Barnsley CCG,31/08/2019,C&M-PMS DES Minor Surgery,PRC DELEGATED CO-COMMISSIONING,NHS BARNSLEY CCG GP PRACTICE,28451044,"1,704.80"
Department of Health,NHS Barnsley CCG,31/08/2019,C&M-PMS PCN DES Participation,PRC DELEGATED CO-COMMISSIONING,NHS BARNSLEY CCG GP PRACTICE,28451044,"1,084.83"
Department of Health,NHS Barnsley CCG,31/08/2019,C&M-PMS Prem Healthcentre Rent,PRC DELEGATED CO-COMMISSIONING,NHS BARNSLEY CCG GP PRACTICE,28451044,"21,474.28"
Department of Health,NHS Barnsley CCG,31/08/2019,C&M-PMS QOF Aspiration,PRC DELEGATED CO-COMMISSIONING,NHS BARNSLEY CCG GP PRACTICE,28451044,"5,320.13"
Department of Health,NHS Barnsley CCG,31/08/2019,C&M-GMS DES Learn Dsblty Hlth Chk,PRC DELEGATED CO-COMMISSIONING,NHS BARNSLEY CCG GP PRACTICE,28684991,"1,260.00"
Department of Health,NHS Barnsley CCG,31/08/2019,C&M-GMS Global Sum,PRC DELEGATED CO-COMMISSIONING,NHS BARNSLEY CCG GP PRACTICE,28684991,"76,735.90"
Department of Health,NHS Barnsley CCG,31/08/2019,C&M-GMS PCN DES Participation,PRC DELEGATED CO-COMMISSIONING,NHS BARNSLEY CCG GP PRACTICE,28684991,"1,574.13"
Department of Health,NHS Barnsley CCG,31/08/2019,C&M-GMS PCO Other,PRC DELEGATED CO-COMMISSIONING,NHS BARNSLEY CCG GP PRACTICE,28684991,614.90
Department of Health,NHS Barnsley CCG,31/08/2019,C&M-GMS Prem Notional Rent,PRC DELEGATED CO-COMMISSIONING,NHS BARNSLEY CCG GP PRACTICE,28684991,"4,658.33"
Department of Health,NHS Barnsley CCG,31/08/2019,C&M-GMS Prem Rates,PRC DELEGATED CO-COMMISSIONING,NHS BARNSLEY CCG GP PRACTICE,28684991,"1,318.00"
Department of Health,NHS Barnsley CCG,31/08/2019,C&M-GMS Prem Water Rates,PRC DELEGATED CO-COMMISSIONING,NHS BARNSLEY CCG GP PRACTICE,28684991,35.01
Department of Health,NHS Barnsley CCG,31/08/2019,C&M-GMS QOF Aspiration,PRC DELEGATED CO-COMMISSIONING,NHS BARNSLEY CCG GP PRACTICE,28684991,"8,124.94"
Department of Health,NHS Barnsley CCG,31/08/2019,C&M-PMS Contract Value,PRC DELEGATED CO-COMMISSIONING,NHS BARNSLEY CCG GP PRACTICE,28451047,-143.12
Department of Health,NHS Barnsley CCG,31/08/2019,C&M-PMS GP Statutory Levy,PRC DELEGATED CO-COMMISSIONING,NHS BARNSLEY CCG GP PRACTICE,28451047,-570.40
Department of Health,NHS Barnsley CCG,31/08/2019,C&M-PMS Out of Hours Opt Outs,PRC DELEGATED CO-COMMISSIONING,NHS BARNSLEY CCG GP PRACTICE,28451047,"-6,398.57"
Department of Health,NHS Barnsley CCG,31/08/2019,C&M-PMS Voluntary Levy,PRC DELEGATED CO-COMMISSIONING,NHS BARNSLEY CCG GP PRACTICE,28451047,-99.82
Department of Health,NHS Barnsley CCG,31/08/2019,ME-PMS GP Pension EEs Adjs - PMS,PRC DELEGATED CO-COMMISSIONING,NHS BARNSLEY CCG GP PRACTICE,28451047,"-2,367.09"
Department of Health,NHS Barnsley CCG,31/08/2019,ME-PMS GP Pension EEs-PMS,PRC DELEGATED CO-COMMISSIONING,NHS BARNSLEY CCG GP PRACTICE,28451047,"-11,568.75"
Department of Health,NHS Barnsley CCG,31/08/2019,ME-PMS GP Pension ERs Adjs - PMS,PRC DELEGATED CO-COMMISSIONING,NHS BARNSLEY CCG GP PRACTICE,28451047,"-14,074.47"
Department of Health,NHS Barnsley CCG,31/08/2019,C&M-PMS Contract Value,PRC DELEGATED CO-COMMISSIONING,NHS BARNSLEY CCG GP PRACTICE,28451048,"135,717.64"
Department of Health,NHS Barnsley CCG,31/08/2019,C&M-PMS DES Minor Surgery,PRC DELEGATED CO-COMMISSIONING,NHS BARNSLEY CCG GP PRACTICE,28451048,"10,953.34"
Department of Health,NHS Barnsley CCG,31/08/2019,C&M-PMS Out of Hours Opt Outs,PRC DELEGATED CO-COMMISSIONING,NHS BARNSLEY CCG GP PRACTICE,28451048,6.74
Department of Health,NHS Barnsley CCG,31/08/2019,C&M-PMS PCN DES Participation,PRC DELEGATED CO-COMMISSIONING,NHS BARNSLEY CCG GP PRACTICE,28451048,"2,600.20"
Department of Health,NHS Barnsley CCG,31/08/2019,C&M-PMS Prem Notional Rent,PRC DELEGATED CO-COMMISSIONING,NHS BARNSLEY CCG GP PRACTICE,28451048,"6,333.33"
Department of Health,NHS Barnsley CCG,31/08/2019,C&M-PMS Prem Rates,PRC DELEGATED CO-COMMISSIONING,NHS BARNSLEY CCG GP PRACTICE,28451048,"2,165.00"
Department of Health,NHS Barnsley CCG,31/08/2019,C&M-PMS QOF Aspiration,PRC DELEGATED CO-COMMISSIONING,NHS BARNSLEY CCG GP PRACTICE,28451048,"13,813.79"
Department of Health,NHS Barnsley CCG,31/08/2019,ME-PMS GP Pension EEs Adjs - PMS,PRC DELEGATED CO-COMMISSIONING,NHS BARNSLEY CCG GP PRACTICE,28451048,67.50
Department of Health,NHS Barnsley CCG,31/08/2019,C&M-PMS Cost of Drugs -Dispensing,LOCAL ENHANCED SERVICES,NHS BARNSLEY CCG GP PRACTICE,28722996,"-72,024.02"
Department of Health,NHS Barnsley CCG,31/08/2019,C&M-PMS Prsc Chrgs Cll&Rmttd by GPs,PRC DELEGATED CO-COMMISSIONING,NHS BARNSLEY CCG GP PRACTICE,28722996,"-4,536.00"
Department of Health,NHS Barnsley CCG,31/08/2019,C&M-PMS Cost of Drugs -Dispensing,LOCAL ENHANCED SERVICES,NHS BARNSLEY CCG GP PRACTICE,28722997,"149,194.08"
Department of Health,NHS Barnsley CCG,31/08/2019,C&M-PMS Prof fees Dispensing,PRC DELEGATED CO-COMMISSIONING,NHS BARNSLEY CCG GP PRACTICE,28722997,"26,188.42"
Department of Health,NHS Barnsley CCG,31/08/2019,C&M-PMS Prsc Chrgs Cll&Rmttd by GPs,LOCAL ENHANCED SERVICES,NHS BARNSLEY CCG GP PRACTICE,28722997,"4,536.00"
Department of Health,NHS Barnsley CCG,31/08/2019,C&M-GMS Global Sum,PRC DELEGATED CO-COMMISSIONING,NHS BARNSLEY CCG GP PRACTICE,28690089,"23,839.26"
Department of Health,NHS Barnsley CCG,31/08/2019,C&M-GMS MPIG Correction Factor,PRC DELEGATED CO-COMMISSIONING,NHS BARNSLEY CCG GP PRACTICE,28690089,202.40
Department of Health,NHS Barnsley CCG,31/08/2019,C&M-GMS PCN DES Participation,PRC DELEGATED CO-COMMISSIONING,NHS BARNSLEY CCG GP PRACTICE,28690089,481.53
Department of Health,NHS Barnsley CCG,31/08/2019,C&M-GMS PCO Other,PRC DELEGATED CO-COMMISSIONING,NHS BARNSLEY CCG GP PRACTICE,28690089,227.50
Department of Health,NHS Barnsley CCG,31/08/2019,C&M-GMS Prem Clinical Waste,PRC DELEGATED CO-COMMISSIONING,NHS BARNSLEY CCG GP PRACTICE,28690089,299.92
Department of Health,NHS Barnsley CCG,31/08/2019,C&M-GMS Prem Healthcentre Rent,PRC DELEGATED CO-COMMISSIONING,NHS BARNSLEY CCG GP PRACTICE,28690089,"1,473.37"
Department of Health,NHS Barnsley CCG,31/08/2019,C&M-GMS QOF Aspiration,PRC DELEGATED CO-COMMISSIONING,NHS BARNSLEY CCG GP PRACTICE,28690089,"2,460.63"
Department of Health,NHS Barnsley CCG,31/08/2019,C&M-GMS Global Sum,PRC DELEGATED CO-COMMISSIONING,NHS BARNSLEY CCG GP PRACTICE,28684993,"42,629.74"
Department of Health,NHS Barnsley CCG,31/08/2019,C&M-GMS PCN DES Participation,PRC DELEGATED CO-COMMISSIONING,NHS BARNSLEY CCG GP PRACTICE,28684993,847.50
Department of Health,NHS Barnsley CCG,31/08/2019,C&M-GMS Prem Notional Rent,PRC DELEGATED CO-COMMISSIONING,NHS BARNSLEY CCG GP PRACTICE,28684993,"1,681.25"
Department of Health,NHS Barnsley CCG,31/08/2019,C&M-GMS Prem Rates,PRC DELEGATED CO-COMMISSIONING,NHS BARNSLEY CCG GP PRACTICE,28684993,"1,502.00"
Department of Health,NHS Barnsley CCG,31/08/2019,C&M-GMS QOF Aspiration,PRC DELEGATED CO-COMMISSIONING,NHS BARNSLEY CCG GP PRACTICE,28684993,"4,009.16"
Department of Health,NHS Barnsley CCG,31/08/2019,C&M-PMS Contract Value,PRC DELEGATED CO-COMMISSIONING,NHS BARNSLEY CCG GP PRACTICE,28451046,"39,002.92"
Department of Health,NHS Barnsley CCG,31/08/2019,C&M-PMS DES Minor Surgery,PRC DELEGATED CO-COMMISSIONING,NHS BARNSLEY CCG GP PRACTICE,28451046,809.78
Department of Health,NHS Barnsley CCG,31/08/2019,C&M-PMS Out of Hours Opt Outs,PRC DELEGATED CO-COMMISSIONING,NHS BARNSLEY CCG GP PRACTICE,28451046,21.90
Department of Health,NHS Barnsley CCG,31/08/2019,C&M-PMS PCN DES Participation,PRC DELEGATED CO-COMMISSIONING,NHS BARNSLEY CCG GP PRACTICE,28451046,742.47
Department of Health,NHS Barnsley CCG,31/08/2019,C&M-PMS Prem Healthcentre Rent,PRC DELEGATED CO-COMMISSIONING,NHS BARNSLEY CCG GP PRACTICE,28451046,"3,596.62"
Department of Health,NHS Barnsley CCG,31/08/2019,C&M-PMS Prem Notional Rent,PRC DELEGATED CO-COMMISSIONING,NHS BARNSLEY CCG GP PRACTICE,28451046,"8,808.34"
Department of Health,NHS Barnsley CCG,31/08/2019,C&M-PMS Prem Rates,PRC DELEGATED CO-COMMISSIONING,NHS BARNSLEY CCG GP PRACTICE,28451046,"1,550.59"
Department of Health,NHS Barnsley CCG,31/08/2019,C&M-PMS QOF Aspiration,PRC DELEGATED CO-COMMISSIONING,NHS BARNSLEY CCG GP PRACTICE,28451046,"2,732.54"
Department of Health,NHS Barnsley CCG,31/08/2019,C&M-GMS GP Statutory Levy,PRC DELEGATED CO-COMMISSIONING,NHS BARNSLEY CCG GP PRACTICE,28684996,-453.67
Department of Health,NHS Barnsley CCG,31/08/2019,C&M-GMS Voluntary Levy,PRC DELEGATED CO-COMMISSIONING,NHS BARNSLEY CCG GP PRACTICE,28684996,-79.39
Department of Health,NHS Barnsley CCG,31/08/2019,ME - GMS GP Prior Year ERs,PRC DELEGATED CO-COMMISSIONING,NHS BARNSLEY CCG GP PRACTICE,28684996,"-1,960.09"
Department of Health,NHS Barnsley CCG,31/08/2019,ME - GMS TPS Added Years Adj EEs,PRC DELEGATED CO-COMMISSIONING,NHS BARNSLEY CCG GP PRACTICE,28684996,-572.25
Department of Health,NHS Barnsley CCG,31/08/2019,ME-GMS GP Pension EEs,PRC DELEGATED CO-COMMISSIONING,NHS BARNSLEY CCG GP PRACTICE,28684996,"-13,183.57"
Department of Health,NHS Barnsley CCG,31/08/2019,ME-GMS GP Pension ERs Adjustments,PRC DELEGATED CO-COMMISSIONING,NHS BARNSLEY CCG GP PRACTICE,28684996,"-13,332.31"
Department of Health,NHS Barnsley CCG,31/08/2019,ME-GMS GP Prior Year EEs,PRC DELEGATED CO-COMMISSIONING,NHS BARNSLEY CCG GP PRACTICE,28684996,"-1,713.36"
Department of Health,NHS Barnsley CCG,31/08/2019,C&M-GMS DES Learn Dsblty Hlth Chk,PRC DELEGATED CO-COMMISSIONING,NHS BARNSLEY CCG GP PRACTICE,28684997,840.00
Department of Health,NHS Barnsley CCG,31/08/2019,C&M-GMS Global Sum,PRC DELEGATED CO-COMMISSIONING,NHS BARNSLEY CCG GP PRACTICE,28684997,"109,385.00"
Department of Health,NHS Barnsley CCG,31/08/2019,C&M-GMS PCN DES Participation,PRC DELEGATED CO-COMMISSIONING,NHS BARNSLEY CCG GP PRACTICE,28684997,"2,254.50"
Department of Health,NHS Barnsley CCG,31/08/2019,C&M-GMS PCO Other,PRC DELEGATED CO-COMMISSIONING,NHS BARNSLEY CCG GP PRACTICE,28684997,"8,235.00"
Department of Health,NHS Barnsley CCG,31/08/2019,C&M-GMS Prem Notional Rent,PRC DELEGATED CO-COMMISSIONING,NHS BARNSLEY CCG GP PRACTICE,28684997,"7,297.17"
Department of Health,NHS Barnsley CCG,31/08/2019,C&M-GMS Prem Water Rates,PRC DELEGATED CO-COMMISSIONING,NHS BARNSLEY CCG GP PRACTICE,28684997,363.56
Department of Health,NHS Barnsley CCG,31/08/2019,C&M-GMS QOF Aspiration,PRC DELEGATED CO-COMMISSIONING,NHS BARNSLEY CCG GP PRACTICE,28684997,"11,179.35"
Department of Health,NHS Barnsley CCG,31/08/2019,C&M-GMS DES Learn Dsblty Hlth Chk,PRC DELEGATED CO-COMMISSIONING,NHS BARNSLEY CCG GP PRACTICE,28684995,140.00
Department of Health,NHS Barnsley CCG,31/08/2019,C&M-GMS Global Sum,PRC DELEGATED CO-COMMISSIONING,NHS BARNSLEY CCG GP PRACTICE,28684995,"98,190.64"
Department of Health,NHS Barnsley CCG,31/08/2019,C&M-GMS PCN DES Participation,PRC DELEGATED CO-COMMISSIONING,NHS BARNSLEY CCG GP PRACTICE,28684995,"2,013.63"
Department of Health,NHS Barnsley CCG,31/08/2019,C&M-GMS Prem Notional Rent,PRC DELEGATED CO-COMMISSIONING,NHS BARNSLEY CCG GP PRACTICE,28684995,"13,593.75"
Department of Health,NHS Barnsley CCG,31/08/2019,C&M-GMS Prem Rates,PRC DELEGATED CO-COMMISSIONING,NHS BARNSLEY CCG GP PRACTICE,28684995,"3,093.54"
Department of Health,NHS Barnsley CCG,31/08/2019,C&M-GMS Prem Water Rates,PRC DELEGATED CO-COMMISSIONING,NHS BARNSLEY CCG GP PRACTICE,28684995,397.08
Department of Health,NHS Barnsley CCG,31/08/2019,C&M-GMS QOF Aspiration,PRC DELEGATED CO-COMMISSIONING,NHS BARNSLEY CCG GP PRACTICE,28684995,"9,651.42"
Department of Health,NHS Barnsley CCG,31/08/2019,ME - GMS GP Prior Year ERs,PRC DELEGATED CO-COMMISSIONING,NHS BARNSLEY CCG GP PRACTICE,28684995,17.36
Department of Health,NHS Barnsley CCG,31/08/2019,ME-GMS GP Prior Year EEs,PRC DELEGATED CO-COMMISSIONING,NHS BARNSLEY CCG GP PRACTICE,28684995,375.17
Department of Health,NHS Barnsley CCG,31/08/2019,C&M-GMS DES Learn Dsblty Hlth Chk,PRC DELEGATED CO-COMMISSIONING,NHS BARNSLEY CCG GP PRACTICE,28684999,560.00
Department of Health,NHS Barnsley CCG,31/08/2019,C&M-GMS Global Sum,PRC DELEGATED CO-COMMISSIONING,NHS BARNSLEY CCG GP PRACTICE,28684999,"82,583.48"
Department of Health,NHS Barnsley CCG,31/08/2019,C&M-GMS PCN DES Participation,PRC DELEGATED CO-COMMISSIONING,NHS BARNSLEY CCG GP PRACTICE,28684999,"1,684.26"
Department of Health,NHS Barnsley CCG,31/08/2019,C&M-GMS PCO Other,PRC DELEGATED CO-COMMISSIONING,NHS BARNSLEY CCG GP PRACTICE,28684999,644.20
Department of Health,NHS Barnsley CCG,31/08/2019,C&M-GMS Prem Rates,PRC DELEGATED CO-COMMISSIONING,NHS BARNSLEY CCG GP PRACTICE,28684999,"2,448.18"
Department of Health,NHS Barnsley CCG,31/08/2019,C&M-GMS QOF Aspiration,PRC DELEGATED CO-COMMISSIONING,NHS BARNSLEY CCG GP PRACTICE,28684999,"10,284.96"
Department of Health,NHS Barnsley CCG,31/08/2019,C&M-PMS Contract Value,PRC DELEGATED CO-COMMISSIONING,NHS BARNSLEY CCG GP PRACTICE,28451049,"-1,118.30"
Department of Health,NHS Barnsley CCG,31/08/2019,C&M-PMS GP Statutory Levy,PRC DELEGATED CO-COMMISSIONING,NHS BARNSLEY CCG GP PRACTICE,28451049,-574.67
Department of Health,NHS Barnsley CCG,31/08/2019,C&M-PMS Out of Hours Opt Outs,PRC DELEGATED CO-COMMISSIONING,NHS BARNSLEY CCG GP PRACTICE,28451049,"-7,073.23"
Department of Health,NHS Barnsley CCG,31/08/2019,C&M-PMS Voluntary Levy,PRC DELEGATED CO-COMMISSIONING,NHS BARNSLEY CCG GP PRACTICE,28451049,-100.57
Department of Health,NHS Barnsley CCG,31/08/2019,ME - PMS GP Prior Year ERs,PRC DELEGATED CO-COMMISSIONING,NHS BARNSLEY CCG GP PRACTICE,28451049,"-1,718.86"
Department of Health,NHS Barnsley CCG,31/08/2019,ME - PMS TPS Added Years Adj EEs,PRC DELEGATED CO-COMMISSIONING,NHS BARNSLEY CCG GP PRACTICE,28451049,-346.67
Department of Health,NHS Barnsley CCG,31/08/2019,ME-PMS GP Pension EEs-PMS,PRC DELEGATED CO-COMMISSIONING,NHS BARNSLEY CCG GP PRACTICE,28451049,"-7,585.67"
Department of Health,NHS Barnsley CCG,31/08/2019,ME-PMS GP Pension ERs Adjs - PMS,PRC DELEGATED CO-COMMISSIONING,NHS BARNSLEY CCG GP PRACTICE,28451049,"-8,002.24"
Department of Health,NHS Barnsley CCG,31/08/2019,ME-PMS GP Prior Year EEs,PRC DELEGATED CO-COMMISSIONING,NHS BARNSLEY CCG GP PRACTICE,28451049,"-1,622.70"
Department of Health,NHS Barnsley CCG,31/08/2019,C&M-PMS Contract Value,PRC DELEGATED CO-COMMISSIONING,NHS BARNSLEY CCG GP PRACTICE,28451050,"146,813.51"
Department of Health,NHS Barnsley CCG,31/08/2019,C&M-PMS DES Minor Surgery,PRC DELEGATED CO-COMMISSIONING,NHS BARNSLEY CCG GP PRACTICE,28451050,"11,422.16"
Department of Health,NHS Barnsley CCG,31/08/2019,C&M-PMS Out of Hours Opt Outs,PRC DELEGATED CO-COMMISSIONING,NHS BARNSLEY CCG GP PRACTICE,28451050,54.32
Department of Health,NHS Barnsley CCG,31/08/2019,C&M-PMS PCN DES Participation,PRC DELEGATED CO-COMMISSIONING,NHS BARNSLEY CCG GP PRACTICE,28451050,"2,875.49"
Department of Health,NHS Barnsley CCG,31/08/2019,C&M-PMS PCO Other,PRC DELEGATED CO-COMMISSIONING,NHS BARNSLEY CCG GP PRACTICE,28451050,"5,214.50"
Department of Health,NHS Barnsley CCG,31/08/2019,C&M-PMS Prem Notional Rent,PRC DELEGATED CO-COMMISSIONING,NHS BARNSLEY CCG GP PRACTICE,28451050,"11,741.66"
Department of Health,NHS Barnsley CCG,31/08/2019,C&M-PMS QOF Aspiration,PRC DELEGATED CO-COMMISSIONING,NHS BARNSLEY CCG GP PRACTICE,28451050,"15,137.25"
Department of Health,NHS Barnsley CCG,31/08/2019,C&M-APMS LES GP Comm Incentive Sch,COMMISSIONING SCHEMES,NHS BARNSLEY CCG GP PRACTICE,28566991,"8,112.26"
Department of Health,NHS Barnsley CCG,31/08/2019,C&M-GMS PCO Other,COMMISSIONING SCHEMES,NHS BARNSLEY CCG GP PRACTICE,28566991,"19,622.90"
Department of Health,NHS Barnsley CCG,31/08/2019,C&M-PMS LES Referral Management,COMMISSIONING SCHEMES,NHS BARNSLEY CCG GP PRACTICE,28566991,"6,577.51"
Department of Health,NHS Barnsley CCG,31/08/2019,C&M-PMS Contract Value,PRC DELEGATED CO-COMMISSIONING,NHS BARNSLEY CCG GP PRACTICE,28451052,"104,125.57"
Department of Health,NHS Barnsley CCG,31/08/2019,C&M-PMS DES Learn Dsblty Hlth Chk,PRC DELEGATED CO-COMMISSIONING,NHS BARNSLEY CCG GP PRACTICE,28451052,280.00
Department of Health,NHS Barnsley CCG,31/08/2019,C&M-PMS DES Minor Surgery,PRC DELEGATED CO-COMMISSIONING,NHS BARNSLEY CCG GP PRACTICE,28451052,"10,527.14"
Department of Health,NHS Barnsley CCG,31/08/2019,C&M-PMS PCN DES Participation,PRC DELEGATED CO-COMMISSIONING,NHS BARNSLEY CCG GP PRACTICE,28451052,"2,013.74"
Department of Health,NHS Barnsley CCG,31/08/2019,C&M-PMS PCO Other,PRC DELEGATED CO-COMMISSIONING,NHS BARNSLEY CCG GP PRACTICE,28451052,726.40
Department of Health,NHS Barnsley CCG,31/08/2019,C&M-PMS Prem Actual Rent,PRC DELEGATED CO-COMMISSIONING,NHS BARNSLEY CCG GP PRACTICE,28451052,"13,333.33"
Department of Health,NHS Barnsley CCG,31/08/2019,C&M-PMS Prem Rates,PRC DELEGATED CO-COMMISSIONING,NHS BARNSLEY CCG GP PRACTICE,28451052,"3,276.00"
Department of Health,NHS Barnsley CCG,31/08/2019,C&M-PMS QOF Aspiration,PRC DELEGATED CO-COMMISSIONING,NHS BARNSLEY CCG GP PRACTICE,28451052,"10,812.71"
Department of Health,NHS Barnsley CCG,31/08/2019,C&M-PMS Contract Value,PRC DELEGATED CO-COMMISSIONING,NHS BARNSLEY CCG GP PRACTICE,28451054,"91,853.98"
Department of Health,NHS Barnsley CCG,31/08/2019,C&M-PMS DES Minor Surgery,PRC DELEGATED CO-COMMISSIONING,NHS BARNSLEY CCG GP PRACTICE,28451054,"3,239.12"
Department of Health,NHS Barnsley CCG,31/08/2019,C&M-PMS PCN DES Participation,PRC DELEGATED CO-COMMISSIONING,NHS BARNSLEY CCG GP PRACTICE,28451054,"1,787.42"
Department of Health,NHS Barnsley CCG,31/08/2019,C&M-PMS PCO Other,PRC DELEGATED CO-COMMISSIONING,NHS BARNSLEY CCG GP PRACTICE,28451054,709.80
Department of Health,NHS Barnsley CCG,31/08/2019,C&M-PMS Prem Actual Rent,PRC DELEGATED CO-COMMISSIONING,NHS BARNSLEY CCG GP PRACTICE,28451054,"8,566.67"
Department of Health,NHS Barnsley CCG,31/08/2019,C&M-PMS Prem Rates,PRC DELEGATED CO-COMMISSIONING,NHS BARNSLEY CCG GP PRACTICE,28451054,"2,080.00"
Department of Health,NHS Barnsley CCG,31/08/2019,C&M-PMS QOF Aspiration,PRC DELEGATED CO-COMMISSIONING,NHS BARNSLEY CCG GP PRACTICE,28451054,"7,216.95"
Department of Health,NHS Barnsley CCG,31/08/2019,ME - PMS GP Prior Year ERs,PRC DELEGATED CO-COMMISSIONING,NHS BARNSLEY CCG GP PRACTICE,28451054,349.84
Department of Health,NHS Barnsley CCG,31/08/2019,ME-PMS GP Prior Year EEs,PRC DELEGATED CO-COMMISSIONING,NHS BARNSLEY CCG GP PRACTICE,28451054,227.52
Department of Health,NHS Barnsley CCG,31/08/2019,C&M-GMS DES Learn Dsblty Hlth Chk,PRC DELEGATED CO-COMMISSIONING,NHS BARNSLEY CCG GP PRACTICE,28709631,"2,800.00"
Department of Health,NHS Barnsley CCG,31/08/2019,C&M-GMS Global Sum,PRC DELEGATED CO-COMMISSIONING,NHS BARNSLEY CCG GP PRACTICE,28709631,"57,682.80"
Department of Health,NHS Barnsley CCG,31/08/2019,C&M-GMS PCN DES Participation,PRC DELEGATED CO-COMMISSIONING,NHS BARNSLEY CCG GP PRACTICE,28709631,"1,187.90"
Department of Health,NHS Barnsley CCG,31/08/2019,C&M-GMS Prem Healthcentre Rent,PRC DELEGATED CO-COMMISSIONING,NHS BARNSLEY CCG GP PRACTICE,28709631,"24,538.12"
Department of Health,NHS Barnsley CCG,31/08/2019,C&M-GMS QOF Aspiration,PRC DELEGATED CO-COMMISSIONING,NHS BARNSLEY CCG GP PRACTICE,28709631,"6,065.73"
Department of Health,NHS Barnsley CCG,31/08/2019,ME - GMS GP Prior Year ERs,PRC DELEGATED CO-COMMISSIONING,NHS BARNSLEY CCG GP PRACTICE,28709631,"2,336.71"
Department of Health,NHS Barnsley CCG,31/08/2019,ME-GMS GP Pension EEs Adjustments,PRC DELEGATED CO-COMMISSIONING,NHS BARNSLEY CCG GP PRACTICE,28709631,752.49
Department of Health,NHS Barnsley CCG,31/08/2019,ME-GMS GP Pension ERs Adjustments,PRC DELEGATED CO-COMMISSIONING,NHS BARNSLEY CCG GP PRACTICE,28709631,359.49
Department of Health,NHS Barnsley CCG,31/08/2019,ME-GMS GP Prior Year EEs,PRC DELEGATED CO-COMMISSIONING,NHS BARNSLEY CCG GP PRACTICE,28709631,"41,130.71"
Department of Health,NHS Barnsley CCG,31/08/2019,C&M-PMS Contract Value,PRC DELEGATED CO-COMMISSIONING,NHS BARNSLEY CCG GP PRACTICE,28451056,"105,568.17"
Department of Health,NHS Barnsley CCG,31/08/2019,C&M-PMS DES Learn Dsblty Hlth Chk,PRC DELEGATED CO-COMMISSIONING,NHS BARNSLEY CCG GP PRACTICE,28451056,700.00
Department of Health,NHS Barnsley CCG,31/08/2019,C&M-PMS PCN DES Participation,PRC DELEGATED CO-COMMISSIONING,NHS BARNSLEY CCG GP PRACTICE,28451056,"2,041.60"
Department of Health,NHS Barnsley CCG,31/08/2019,C&M-PMS PCO Locum Adop/Pat/Mat,PRC DELEGATED CO-COMMISSIONING,NHS BARNSLEY CCG GP PRACTICE,28451056,"2,286.12"
Department of Health,NHS Barnsley CCG,31/08/2019,C&M-PMS Prem Rates,PRC DELEGATED CO-COMMISSIONING,NHS BARNSLEY CCG GP PRACTICE,28451056,"3,513.00"
Department of Health,NHS Barnsley CCG,31/08/2019,C&M-PMS QOF Aspiration,PRC DELEGATED CO-COMMISSIONING,NHS BARNSLEY CCG GP PRACTICE,28451056,"11,217.47"
Department of Health,NHS Barnsley CCG,31/08/2019,C&M-GMS Global Sum,PRC DELEGATED CO-COMMISSIONING,NHS BARNSLEY CCG GP PRACTICE,28685003,"49,959.04"
Department of Health,NHS Barnsley CCG,31/08/2019,C&M-GMS PCN DES Participation,PRC DELEGATED CO-COMMISSIONING,NHS BARNSLEY CCG GP PRACTICE,28685003,"1,018.56"
Department of Health,NHS Barnsley CCG,31/08/2019,C&M-GMS Prem Notional Rent,PRC DELEGATED CO-COMMISSIONING,NHS BARNSLEY CCG GP PRACTICE,28685003,"2,750.00"
Department of Health,NHS Barnsley CCG,31/08/2019,C&M-GMS Prem Rates,PRC DELEGATED CO-COMMISSIONING,NHS BARNSLEY CCG GP PRACTICE,28685003,565.00
Department of Health,NHS Barnsley CCG,31/08/2019,C&M-GMS Prem Water Rates,PRC DELEGATED CO-COMMISSIONING,NHS BARNSLEY CCG GP PRACTICE,28685003,120.37
Department of Health,NHS Barnsley CCG,31/08/2019,C&M-GMS QOF Aspiration,PRC DELEGATED CO-COMMISSIONING,NHS BARNSLEY CCG GP PRACTICE,28685003,"3,844.61"
Department of Health,NHS Barnsley CCG,31/08/2019,Clinical&Medical-Commercial Sector,LEARNING DIFFICULTIES,ELYSIUM HEALTHCARE LTD,28405610,"30,217.25"
Department of Health,NHS Barnsley CCG,31/08/2019,C&M-PMS Contract Value,PRC DELEGATED CO-COMMISSIONING,NHS BARNSLEY CCG GP PRACTICE,28451070,"41,819.08"
Department of Health,NHS Barnsley CCG,31/08/2019,C&M-PMS Cost of Drugs -Prescribing,LOCAL ENHANCED SERVICES,NHS BARNSLEY CCG GP PRACTICE,28451070,223.09
Department of Health,NHS Barnsley CCG,31/08/2019,C&M-PMS Out of Hours Opt Outs,PRC DELEGATED CO-COMMISSIONING,NHS BARNSLEY CCG GP PRACTICE,28451070,57.70
Department of Health,NHS Barnsley CCG,31/08/2019,C&M-PMS PCN DES Participation,PRC DELEGATED CO-COMMISSIONING,NHS BARNSLEY CCG GP PRACTICE,28451070,799.36
Department of Health,NHS Barnsley CCG,31/08/2019,C&M-PMS Prem Rates,PRC DELEGATED CO-COMMISSIONING,NHS BARNSLEY CCG GP PRACTICE,28451070,"3,500.00"
Department of Health,NHS Barnsley CCG,31/08/2019,C&M-PMS Prof fees Prescribing,PRC DELEGATED CO-COMMISSIONING,NHS BARNSLEY CCG GP PRACTICE,28451070,136.86
Department of Health,NHS Barnsley CCG,31/08/2019,C&M-PMS QOF Aspiration,PRC DELEGATED CO-COMMISSIONING,NHS BARNSLEY CCG GP PRACTICE,28451070,"4,070.72"
Department of Health,NHS Barnsley CCG,31/08/2019,Soc Care-Bed-Based Int Care Servs,INTERMEDIATE CARE,HIGHSTONE MEWS CARE HOME,28339099,"38,910.67"
Department of Health,NHS Barnsley CCG,31/08/2019,Apprenticeship Levy Payable,BALANCE SHEET,HMRC,28543056,"1,047.00"
Department of Health,NHS Barnsley CCG,31/08/2019,Income tax <1Yr,BALANCE SHEET,HMRC,28543056,"67,000.20"
Department of Health,NHS Barnsley CCG,31/08/2019,Income tax <1Yr-Student Loans,BALANCE SHEET,HMRC,28543056,"1,605.00"
Department of Health,NHS Barnsley CCG,31/08/2019,National Insurance < 1 yr-NI- ERS,BALANCE SHEET,HMRC,28543056,"48,898.40"
Department of Health,NHS Barnsley CCG,31/08/2019,National Insurance < 1 yr-NI-EES,BALANCE SHEET,HMRC,28543056,"36,000.36"
Department of Health,NHS Barnsley CCG,31/08/2019,Statutory Mat Pay < 1 yr,BALANCE SHEET,HMRC,28543056,"-1,231.11"
Department of Health,NHS Barnsley CCG,31/08/2019,Cont Care-Learning Disab(<65),CHC ADULT JOINT FUNDED,HOLLY BANK TRUST,28722280,"-25,410.86"
Department of Health,NHS Barnsley CCG,31/08/2019,C&M-GMS DES Learn Dsblty Hlth Chk,PRC DELEGATED CO-COMMISSIONING,NHS BARNSLEY CCG GP PRACTICE,28735087,840.00
Department of Health,NHS Barnsley CCG,31/08/2019,C&M-GMS GP Statutory Levy,PRC DELEGATED CO-COMMISSIONING,NHS BARNSLEY CCG GP PRACTICE,28735087,-366.83
Department of Health,NHS Barnsley CCG,31/08/2019,C&M-GMS Global Sum,PRC DELEGATED CO-COMMISSIONING,NHS BARNSLEY CCG GP PRACTICE,28735087,"96,526.76"
Department of Health,NHS Barnsley CCG,31/08/2019,C&M-GMS PCN DES Participation,PRC DELEGATED CO-COMMISSIONING,NHS BARNSLEY CCG GP PRACTICE,28735087,"1,967.78"
Department of Health,NHS Barnsley CCG,31/08/2019,C&M-GMS Prem Healthcentre Rent,PRC DELEGATED CO-COMMISSIONING,NHS BARNSLEY CCG GP PRACTICE,28735087,"39,576.01"
Department of Health,NHS Barnsley CCG,31/08/2019,C&M-GMS QOF Aspiration,PRC DELEGATED CO-COMMISSIONING,NHS BARNSLEY CCG GP PRACTICE,28735087,"9,168.58"
Department of Health,NHS Barnsley CCG,31/08/2019,C&M-GMS Voluntary Levy,PRC DELEGATED CO-COMMISSIONING,NHS BARNSLEY CCG GP PRACTICE,28735087,-64.20
Department of Health,NHS Barnsley CCG,31/08/2019,ME - GMS GP Prior Year ERs,PRC DELEGATED CO-COMMISSIONING,NHS BARNSLEY CCG GP PRACTICE,28735087,-243.34
Department of Health,NHS Barnsley CCG,31/08/2019,ME-GMS GP Pension EEs,PRC DELEGATED CO-COMMISSIONING,NHS BARNSLEY CCG GP PRACTICE,28735087,"-2,776.56"
Department of Health,NHS Barnsley CCG,31/08/2019,ME-GMS GP Pension ERs Adjustments,PRC DELEGATED CO-COMMISSIONING,NHS BARNSLEY CCG GP PRACTICE,28735087,"-3,103.08"
Department of Health,NHS Barnsley CCG,31/08/2019,ME-GMS GP Prior Year EEs,PRC DELEGATED CO-COMMISSIONING,NHS BARNSLEY CCG GP PRACTICE,28735087,-211.45
Department of Health,NHS Barnsley CCG,31/08/2019,C&M-GMS DES Learn Dsblty Hlth Chk,PRC DELEGATED CO-COMMISSIONING,NHS BARNSLEY CCG GP PRACTICE,28685005,140.00
Department of Health,NHS Barnsley CCG,31/08/2019,C&M-GMS Global Sum,PRC DELEGATED CO-COMMISSIONING,NHS BARNSLEY CCG GP PRACTICE,28685005,"90,792.99"
Department of Health,NHS Barnsley CCG,31/08/2019,C&M-GMS PCN DES Participation,PRC DELEGATED CO-COMMISSIONING,NHS BARNSLEY CCG GP PRACTICE,28685005,"1,845.99"
Department of Health,NHS Barnsley CCG,31/08/2019,C&M-GMS Prem Healthcentre Rent,PRC DELEGATED CO-COMMISSIONING,NHS BARNSLEY CCG GP PRACTICE,28685005,"21,846.34"
Department of Health,NHS Barnsley CCG,31/08/2019,C&M-GMS Prem Notional Rent,PRC DELEGATED CO-COMMISSIONING,NHS BARNSLEY CCG GP PRACTICE,28685005,"1,466.67"
Department of Health,NHS Barnsley CCG,31/08/2019,C&M-GMS Prem Water Rates,PRC DELEGATED CO-COMMISSIONING,NHS BARNSLEY CCG GP PRACTICE,28685005,258.42
Department of Health,NHS Barnsley CCG,31/08/2019,C&M-GMS QOF Aspiration,PRC DELEGATED CO-COMMISSIONING,NHS BARNSLEY CCG GP PRACTICE,28685005,"10,019.14"
Department of Health,NHS Barnsley CCG,31/08/2019,C&M-APMS LES GP Comm Incentive Sch,COMMISSIONING SCHEMES,NHS BARNSLEY CCG GP PRACTICE,28405918,"19,144.88"
Department of Health,NHS Barnsley CCG,31/08/2019,C&M-PMS LES Referral Management,COMMISSIONING SCHEMES,NHS BARNSLEY CCG GP PRACTICE,28405918,"18,796.79"
Department of Health,NHS Barnsley CCG,31/08/2019,Clinical&Medical-Clinical Other,COMMISSIONING SCHEMES,NHS BARNSLEY CCG GP PRACTICE,28405918,"12,818.94"
Department of Health,NHS Barnsley CCG,31/08/2019,C&M-PMS Contract Value,PRC DELEGATED CO-COMMISSIONING,NHS BARNSLEY CCG GP PRACTICE,28451058,"50,661.33"
Department of Health,NHS Barnsley CCG,31/08/2019,C&M-PMS Out of Hours Opt Outs,PRC DELEGATED CO-COMMISSIONING,NHS BARNSLEY CCG GP PRACTICE,28451058,45.56
Department of Health,NHS Barnsley CCG,31/08/2019,C&M-PMS PCN DES Participation,PRC DELEGATED CO-COMMISSIONING,NHS BARNSLEY CCG GP PRACTICE,28451058,970.05
Department of Health,NHS Barnsley CCG,31/08/2019,C&M-PMS Prem Healthcentre Rent,PRC DELEGATED CO-COMMISSIONING,NHS BARNSLEY CCG GP PRACTICE,28451058,"5,961.99"
Department of Health,NHS Barnsley CCG,31/08/2019,C&M-PMS Prem Notional Rent,PRC DELEGATED CO-COMMISSIONING,NHS BARNSLEY CCG GP PRACTICE,28451058,"3,666.67"
Department of Health,NHS Barnsley CCG,31/08/2019,C&M-PMS Prem Rates,PRC DELEGATED CO-COMMISSIONING,NHS BARNSLEY CCG GP PRACTICE,28451058,839.00
Department of Health,NHS Barnsley CCG,31/08/2019,C&M-PMS QOF Aspiration,PRC DELEGATED CO-COMMISSIONING,NHS BARNSLEY CCG GP PRACTICE,28451058,"5,136.89"
Department of Health,NHS Barnsley CCG,31/08/2019,Computer Hardware Purch,ADMINISTRATION & BUSINESS SUPPORT,KIER BUSINESS SERVICES LTD,28389196,"23,539.85"
Department of Health,NHS Barnsley CCG,31/08/2019,External Data Contracts,BUSINESS INFORMATICS,KIER BUSINESS SERVICES LTD,28441064,"13,467.00"
Department of Health,NHS Barnsley CCG,31/08/2019,External Data Contracts,COMMISSIONING SCHEMES,KIER BUSINESS SERVICES LTD,28441064,"14,391.00"
Department of Health,NHS Barnsley CCG,31/08/2019,Telecoms-Data lines,PRIMARY CARE IT,KIER BUSINESS SERVICES LTD,28441064,"47,150.00"
Department of Health,NHS Barnsley CCG,31/08/2019,C&M-PMS Contract Value,PRC DELEGATED CO-COMMISSIONING,NHS BARNSLEY CCG GP PRACTICE,28459073,"30,939.43"
Department of Health,NHS Barnsley CCG,31/08/2019,C&M-PMS PCN DES Participation,PRC DELEGATED CO-COMMISSIONING,NHS BARNSLEY CCG GP PRACTICE,28459073,570.89
Department of Health,NHS Barnsley CCG,31/08/2019,C&M-PMS Prem Notional Rent,PRC DELEGATED CO-COMMISSIONING,NHS BARNSLEY CCG GP PRACTICE,28459073,"4,333.33"
Department of Health,NHS Barnsley CCG,31/08/2019,C&M-PMS Prem Rates,PRC DELEGATED CO-COMMISSIONING,NHS BARNSLEY CCG GP PRACTICE,28459073,"1,300.00"
Department of Health,NHS Barnsley CCG,31/08/2019,C&M-PMS Prem Water Rates,PRC DELEGATED CO-COMMISSIONING,NHS BARNSLEY CCG GP PRACTICE,28459073,109.07
Department of Health,NHS Barnsley CCG,31/08/2019,C&M-PMS QOF Aspiration,PRC DELEGATED CO-COMMISSIONING,NHS BARNSLEY CCG GP PRACTICE,28459073,"2,166.21"
Department of Health,NHS Barnsley CCG,31/08/2019,C&M-PMS Cost of Drugs -Dispensing,LOCAL ENHANCED SERVICES,NHS BARNSLEY CCG GP PRACTICE,28720232,"24,000.68"
Department of Health,NHS Barnsley CCG,31/08/2019,C&M-PMS Prof fees Dispensing,PRC DELEGATED CO-COMMISSIONING,NHS BARNSLEY CCG GP PRACTICE,28720232,"4,611.44"
Department of Health,NHS Barnsley CCG,31/08/2019,C&M-PMS Prsc Chrgs Cll&Rmttd by GPs,LOCAL ENHANCED SERVICES,NHS BARNSLEY CCG GP PRACTICE,28720232,"1,242.00"
Department of Health,NHS Barnsley CCG,31/08/2019,C&M-APMS Contract Value,PRC DELEGATED CO-COMMISSIONING,NHS BARNSLEY CCG GP PRACTICE,28451062,"20,082.46"
Department of Health,NHS Barnsley CCG,31/08/2019,C&M-APMS DES Minor Surgery,PRC DELEGATED CO-COMMISSIONING,NHS BARNSLEY CCG GP PRACTICE,28451062,127.86
Department of Health,NHS Barnsley CCG,31/08/2019,C&M-APMS PCN DES Participation,PRC DELEGATED CO-COMMISSIONING,NHS BARNSLEY CCG GP PRACTICE,28451062,378.75
Department of Health,NHS Barnsley CCG,31/08/2019,C&M-APMS Prem Healthcentre Rent,PRC DELEGATED CO-COMMISSIONING,NHS BARNSLEY CCG GP PRACTICE,28451062,"4,986.28"
Department of Health,NHS Barnsley CCG,31/08/2019,C&M-PMS QOF Aspiration,PRC DELEGATED CO-COMMISSIONING,NHS BARNSLEY CCG GP PRACTICE,28451062,"1,724.79"
Department of Health,NHS Barnsley CCG,31/08/2019,Hcare Srv Rec NHS Trust-CQUIN,ACUTE COMMISSIONING,LEEDS TEACHING HOSPITALS NHS TRUST,28405685,"1,010.00"
Department of Health,NHS Barnsley CCG,31/08/2019,Hcare Srv Rec NHS Trust-Contract Baseline,ACUTE COMMISSIONING,LEEDS TEACHING HOSPITALS NHS TRUST,28405685,"97,982.00"
Department of Health,NHS Barnsley CCG,31/08/2019,Hcare Srv Rec NHS Trust-CQUIN,ACUTE COMMISSIONING,MID YORKSHIRE HOSPITALS NHS TRUST,28405904,"1,354.00"
Department of Health,NHS Barnsley CCG,31/08/2019,Hcare Srv Rec NHS Trust-Contract Baseline,ACUTE COMMISSIONING,MID YORKSHIRE HOSPITALS NHS TRUST,28405904,"246,868.00"
Department of Health,NHS Barnsley CCG,31/07/2019,C&M-GMS Prem Other,PRC DELEGATED CO-COMMISSIONING,NHS ENGLAND,28240136,778.68
Department of Health,NHS Barnsley CCG,31/07/2019,C&M-PMS Prem Clinical Waste,PRC DELEGATED CO-COMMISSIONING,NHS ENGLAND,28240136,"15,972.67"
Department of Health,NHS Barnsley CCG,31/07/2019,Recharge : Provided,PRC DELEGATED CO-COMMISSIONING,NHS ENGLAND,28240136,"12,840.00"
Department of Health,NHS Barnsley CCG,31/07/2019,Bldg/Eng Equip Maint Cont,ADMINISTRATION & BUSINESS SUPPORT,NHS PROPERTY SERVICES LTD,28260567,437.12
Department of Health,NHS Barnsley CCG,31/07/2019,Non-PFI Oprtng Lease-Bldgs-Lease Rent,ADMINISTRATION & BUSINESS SUPPORT,NHS PROPERTY SERVICES LTD,28260567,"20,797.18"
Department of Health,NHS Barnsley CCG,31/07/2019,Service Charge,ADMINISTRATION & BUSINESS SUPPORT,NHS PROPERTY SERVICES LTD,28260567,"8,742.33"
Department of Health,NHS Barnsley CCG,31/08/2019,Clinical&Medical-Commercial Sector,ACUTE COMMISSIONING,ONEHEALTH GROUP,28405910,"138,084.91"
Department of Health,NHS Barnsley CCG,31/08/2019,C&M-APMS LES GP Comm Incentive Sch,COMMISSIONING SCHEMES,NHS BARNSLEY CCG GP PRACTICE,28567243,"7,335.62"
Department of Health,NHS Barnsley CCG,31/08/2019,C&M-GMS PCO Other,COMMISSIONING SCHEMES,NHS BARNSLEY CCG GP PRACTICE,28567243,"17,744.28"
Department of Health,NHS Barnsley CCG,31/08/2019,C&M-PMS LES Referral Management,COMMISSIONING SCHEMES,NHS BARNSLEY CCG GP PRACTICE,28567243,"5,947.80"
Department of Health,NHS Barnsley CCG,31/08/2019,Other Transport Costs,PATIENT TRANSPORT,PREMIER CARE DIRECT LTD,28700542,"35,025.67"
Department of Health,NHS Barnsley CCG,31/08/2019,Hcare Srv Rec Fdtn Trust-CQUIN,COMMUNITY SERVICES,ROTHERHAM NHS FOUNDATION TRUST,28360510,530.00
Department of Health,NHS Barnsley CCG,31/08/2019,Hcare Srv Rec Fdtn Trust-Contract Baseline,COMMUNITY SERVICES,ROTHERHAM NHS FOUNDATION TRUST,28360510,"42,420.00"
Department of Health,NHS Barnsley CCG,31/08/2019,Hcare Srv Rec Fdtn Trust-CQUIN,ACUTE COMMISSIONING,ROTHERHAM NHS FOUNDATION TRUST,28360512,"2,339.00"
Department of Health,NHS Barnsley CCG,31/08/2019,Hcare Srv Rec Fdtn Trust-Contract Baseline,ACUTE COMMISSIONING,ROTHERHAM NHS FOUNDATION TRUST,28360512,"410,225.00"
Department of Health,NHS Barnsley CCG,31/08/2019,C&M-GMS Global Sum,PRC DELEGATED CO-COMMISSIONING,NHS BARNSLEY CCG GP PRACTICE,28709632,"62,330.18"
Department of Health,NHS Barnsley CCG,31/08/2019,C&M-GMS PCN DES Participation,PRC DELEGATED CO-COMMISSIONING,NHS BARNSLEY CCG GP PRACTICE,28709632,"1,280.72"
Department of Health,NHS Barnsley CCG,31/08/2019,C&M-GMS Prem Notional Rent,PRC DELEGATED CO-COMMISSIONING,NHS BARNSLEY CCG GP PRACTICE,28709632,"8,873.23"
Department of Health,NHS Barnsley CCG,31/08/2019,C&M-GMS QOF Aspiration,PRC DELEGATED CO-COMMISSIONING,NHS BARNSLEY CCG GP PRACTICE,28709632,"6,864.29"
Department of Health,NHS Barnsley CCG,31/08/2019,ME-GMS GP Pension EEs Adjustments,PRC DELEGATED CO-COMMISSIONING,NHS BARNSLEY CCG GP PRACTICE,28709632,431.25
Department of Health,NHS Barnsley CCG,31/08/2019,ME-GMS GP Pension ERs Adjustments,PRC DELEGATED CO-COMMISSIONING,NHS BARNSLEY CCG GP PRACTICE,28709632,179.76
Department of Health,NHS Barnsley CCG,31/07/2019,Hcare Srv Rec Fdtn Trust-CQUIN,ACUTE COMMISSIONING,SHEFFIELD CHILDRENS NHS FOUNDATION TRUST,28168216,"-1,301.42"
Department of Health,NHS Barnsley CCG,31/07/2019,Hcare Srv Rec Fdtn Trust-Contract Baseline,ACUTE COMMISSIONING,SHEFFIELD CHILDRENS NHS FOUNDATION TRUST,28168216,"197,524.46"
Department of Health,NHS Barnsley CCG,31/07/2019,Hcare Srv Rec Fdtn Trust-Contract Baseline,ACUTE COMMISSIONING,SHEFFIELD TEACHING HOSPITALS NHS FOUNDATION TRUST,28185188,"1,923,125.00"
Department of Health,NHS Barnsley CCG,31/07/2019,Hcare Srv Rec Fdtn Trust-Contract Baseline,ACUTE COMMISSIONING,SHEFFIELD TEACHING HOSPITALS NHS FOUNDATION TRUST,28185203,"183,041.00"
Department of Health,NHS Barnsley CCG,31/07/2019,Hcare Srv Rec Fdtn Trust-Non Contract,NCAS/OATS,SHERWOOD FOREST HOSPITALS NHS FOUNDATION TRUST,28181832,"70,330.20"
Department of Health,NHS Barnsley CCG,31/07/2019,Hcare Srv Rec Fdtn Trust-CQUIN,COMMUNITY SERVICES,SOUTH WEST YORKSHIRE PARTNERSHIP NHS FOUNDATION TRUST,28328615,"7,101.50"
Department of Health,NHS Barnsley CCG,31/07/2019,Hcare Srv Rec Fdtn Trust-CQUIN,LEARNING DIFFICULTIES,SOUTH WEST YORKSHIRE PARTNERSHIP NHS FOUNDATION TRUST,28328615,"1,089.50"
Department of Health,NHS Barnsley CCG,31/07/2019,Hcare Srv Rec Fdtn Trust-CQUIN,MENTAL HEALTH SERVICES - ADULTS,SOUTH WEST YORKSHIRE PARTNERSHIP NHS FOUNDATION TRUST,28328615,"12,122.50"
Department of Health,NHS Barnsley CCG,31/07/2019,Hcare Srv Rec Fdtn Trust-CQUIN,MENTAL HEALTH SERVICES - OLDER PEOPLE,SOUTH WEST YORKSHIRE PARTNERSHIP NHS FOUNDATION TRUST,28328615,"1,408.50"
Department of Health,NHS Barnsley CCG,31/07/2019,Hcare Srv Rec Fdtn Trust-Contract Baseline,COMMUNITY SERVICES,SOUTH WEST YORKSHIRE PARTNERSHIP NHS FOUNDATION TRUST,28328615,"1,136,201.00"
Department of Health,NHS Barnsley CCG,31/07/2019,Hcare Srv Rec Fdtn Trust-Contract Baseline,LEARNING DIFFICULTIES,SOUTH WEST YORKSHIRE PARTNERSHIP NHS FOUNDATION TRUST,28328615,"174,345.00"
Department of Health,NHS Barnsley CCG,31/07/2019,Hcare Srv Rec Fdtn Trust-Contract Baseline,MENTAL HEALTH SERVICES - ADULTS,SOUTH WEST YORKSHIRE PARTNERSHIP NHS FOUNDATION TRUST,28328615,"1,955,613.00"
Department of Health,NHS Barnsley CCG,31/07/2019,Hcare Srv Rec Fdtn Trust-Contract Baseline,MENTAL HEALTH SERVICES - OLDER PEOPLE,SOUTH WEST YORKSHIRE PARTNERSHIP NHS FOUNDATION TRUST,28328615,"239,751.00"
Department of Health,NHS Barnsley CCG,31/07/2019,Hcare Srv Rec Fdtn Trust-Non Contract,COMMUNITY SERVICES,SOUTH WEST YORKSHIRE PARTNERSHIP NHS FOUNDATION TRUST,28328615,"67,448.00"
Department of Health,NHS Barnsley CCG,31/07/2019,Hcare Srv Rec Fdtn Trust-Contract Baseline,INTERMEDIATE CARE,SOUTH WEST YORKSHIRE PARTNERSHIP NHS FOUNDATION TRUST,28328611,"1,286,999.00"
Department of Health,NHS Barnsley CCG,31/08/2019,Clinical&Medical-Commercial Sector,NCAS/OATS,SPAMEDICA LTD,28360465,"84,127.82"
Department of Health,NHS Barnsley CCG,31/07/2019,Hcare Srv Rec NHS Trust-Non Contract,NCAS/OATS,UNITED LINCOLNSHIRE HOSPITALS NHS TRUST,28141021,"28,443.38"
Department of Health,NHS Barnsley CCG,31/08/2019,C&M-PMS Contract Value,PRC DELEGATED CO-COMMISSIONING,NHS BARNSLEY CCG GP PRACTICE,28451060,"77,256.35"
Department of Health,NHS Barnsley CCG,31/08/2019,C&M-PMS PCN DES Participation,PRC DELEGATED CO-COMMISSIONING,NHS BARNSLEY CCG GP PRACTICE,28451060,"1,483.61"
Department of Health,NHS Barnsley CCG,31/08/2019,C&M-PMS PCO Other,PRC DELEGATED CO-COMMISSIONING,NHS BARNSLEY CCG GP PRACTICE,28451060,"5,457.00"
Department of Health,NHS Barnsley CCG,31/08/2019,C&M-PMS Prem Actual Rent,PRC DELEGATED CO-COMMISSIONING,NHS BARNSLEY CCG GP PRACTICE,28451060,319.38
Department of Health,NHS Barnsley CCG,31/08/2019,C&M-PMS Prem Healthcentre Rent,PRC DELEGATED CO-COMMISSIONING,NHS BARNSLEY CCG GP PRACTICE,28451060,"21,462.45"
Department of Health,NHS Barnsley CCG,31/08/2019,C&M-PMS QOF Aspiration,PRC DELEGATED CO-COMMISSIONING,NHS BARNSLEY CCG GP PRACTICE,28451060,"6,461.55"
Department of Health,NHS Barnsley CCG,31/08/2019,C&M-PMS Contract Value,PRC DELEGATED CO-COMMISSIONING,NHS BARNSLEY CCG GP PRACTICE,28459071,"45,692.60"
Department of Health,NHS Barnsley CCG,31/08/2019,C&M-PMS DES Minor Surgery,PRC DELEGATED CO-COMMISSIONING,NHS BARNSLEY CCG GP PRACTICE,28459071,724.54
Department of Health,NHS Barnsley CCG,31/08/2019,C&M-PMS PCN DES Participation,PRC DELEGATED CO-COMMISSIONING,NHS BARNSLEY CCG GP PRACTICE,28459071,878.38
Department of Health,NHS Barnsley CCG,31/08/2019,C&M-PMS PCO Other,PRC DELEGATED CO-COMMISSIONING,NHS BARNSLEY CCG GP PRACTICE,28459071,336.90
Department of Health,NHS Barnsley CCG,31/08/2019,C&M-PMS Prem Rates,PRC DELEGATED CO-COMMISSIONING,NHS BARNSLEY CCG GP PRACTICE,28459071,"1,625.00"
Department of Health,NHS Barnsley CCG,31/08/2019,C&M-PMS QOF Aspiration,PRC DELEGATED CO-COMMISSIONING,NHS BARNSLEY CCG GP PRACTICE,28459071,"4,097.25"
Department of Health,NHS Barnsley CCG,31/07/2019,Hcare Srv Rec NHS Trust-Contract Baseline,AMBULANCE SERVICES,YORKSHIRE AMBULANCE SERVICE NHS TRUST,28328604,"728,818.00"
Department of Health,NHS Barnsley CCG,31/07/2019,Hcare Srv Rec NHS Trust-Contract Baseline,NHS 111,YORKSHIRE AMBULANCE SERVICE NHS TRUST,28328607,"65,235.31"
Department of Health,NHS Barnsley CCG,31/07/2019,Hcare Srv Rec NHS Trust-Contract Baseline,PATIENT TRANSPORT,YORKSHIRE AMBULANCE SERVICE NHS TRUST,28328614,"139,314.32"
,,,,,,,"30,484,718.15"
